[Event "*** Titled Tuesday 3|2 Blitz"]
[Site "Chess.com"]
[Date "2016.01.05"]
[Round "9"]
[White "AndroQueen"]
[Black "BellJackson95"]
[Result "0-1"]
[WhiteElo "2431"]
[BlackElo "2289"]
[TimeControl "180+2"]
[EndTime "12:56:24 PST"]
[Termination "BellJackson95 won by resignation"]

1. e4 {[%clk 0:03:01.9]} 1... e5 {[%clk 0:03:00.6]} 2. Nf3 {[%clk 0:03:02.3]}
2... Nc6 {[%clk 0:03:02]} 3. Bb5 {[%clk 0:03:03.3]} 3... f5 {[%clk 0:03:03.5]}
4. d3 {[%clk 0:03:01.9]} 4... fxe4 {[%clk 0:03:04.8]} 5. dxe4 {[%clk 0:03:03.7]}
5... Nf6 {[%clk 0:03:06.4]} 6. O-O {[%clk 0:03:04.5]} 6... Bc5 {[%clk
0:03:07.6]} 7. Qd3 {[%clk 0:03:02.7]} 7... d6 {[%clk 0:03:08.4]} 8. Qc4 {[%clk
0:02:52.1]} 8... Bd7 {[%clk 0:03:06.3]} 9. Bxc6 {[%clk 0:02:24.3]} 9... Bxc6
{[%clk 0:03:02.3]} 10. Nxe5 {[%clk 0:02:25.5]} 10... dxe5 {[%clk 0:02:56.3]} 11.
Qxc5 {[%clk 0:02:26.1]} 11... Qd6 {[%clk 0:02:46.1]} 12. Qxd6 {[%clk 0:02:19.3]}
12... cxd6 {[%clk 0:02:48]} 13. f3 {[%clk 0:02:20.8]} 13... O-O-O {[%clk
0:02:47.9]} 14. Bg5 {[%clk 0:02:12.9]} 14... d5 {[%clk 0:02:41.5]} 15. Bxf6
{[%clk 0:02:05.9]} 15... gxf6 {[%clk 0:02:42]} 16. exd5 {[%clk 0:02:05.7]} 16...
Rxd5 {[%clk 0:02:43.9]} 17. Nc3 {[%clk 0:01:41.8]} 17... Rd2 {[%clk 0:02:41.6]}
18. Rf2 {[%clk 0:01:33.5]} 18... Rhd8 {[%clk 0:02:35.8]} 19. Rc1 {[%clk
0:01:33.7]} 19... f5 {[%clk 0:02:28.8]} 20. Kf1 {[%clk 0:01:24]} 20... Rxf2+
{[%clk 0:02:12]} 21. Kxf2 {[%clk 0:01:25.2]} 21... Rd2+ {[%clk 0:02:05.5]} 22.
Kf1 {[%clk 0:01:18.6]} 22... b5 {[%clk 0:02:00]} 23. Nb1 {[%clk 0:01:16.5]}
23... Rd7 {[%clk 0:01:56.1]} 24. Ke2 {[%clk 0:01:08.8]} 24... e4 {[%clk
0:01:51.5]} 25. f4 {[%clk 0:00:52.4]} 25... b4 {[%clk 0:01:35.3]} 26. Nd2 {[%clk
0:00:52.4]} 26... Bb5+ {[%clk 0:01:29.6]} 27. Ke3 {[%clk 0:00:53.5]} 27... h5
{[%clk 0:01:18.7]} 28. g3 {[%clk 0:00:51.5]} 28... h4 {[%clk 0:01:17.8]} 29.
gxh4 {[%clk 0:00:29]} 29... Rh7 {[%clk 0:01:17.6]} 30. c3 {[%clk 0:00:28.8]}
30... bxc3 {[%clk 0:00:42.1]} 31. Rxc3+ {[%clk 0:00:30.7]} 31... Kb7 {[%clk
0:00:38.1]} 32. Rc5 {[%clk 0:00:29.3]} 32... Bd7 {[%clk 0:00:32]} 33. Nc4 {[%clk
0:00:23.1]} 33... Rxh4 {[%clk 0:00:24.6]} 34. Ne5 {[%clk 0:00:23.8]} 34... Bc8
{[%clk 0:00:17.5]} 35. Rc2 {[%clk 0:00:21.5]} 35... Rh3+ {[%clk 0:00:14.3]} 36.
Kd4 {[%clk 0:00:22.8]} 36... Be6 {[%clk 0:00:14.4]} 37. b3 {[%clk 0:00:23]}
37... Rh4 {[%clk 0:00:14]} 38. Rf2 {[%clk 0:00:20.9]} 38... Rh8 {[%clk 0:00:15]}
39. Nc4 {[%clk 0:00:16.8]} 39... Bxc4 {[%clk 0:00:14.3]} 40. bxc4 {[%clk
0:00:17.6]} 40... Re8 {[%clk 0:00:15.3]} 41. Ke3 {[%clk 0:00:14.9]} 41... Kc6
{[%clk 0:00:16.7]} 42. Rd2 {[%clk 0:00:15.5]} 42... Rh8 {[%clk 0:00:15.7]} 43.
Kd4 {[%clk 0:00:08.5]} 43... Rd8+ {[%clk 0:00:14.3]} 44. Kc3 {[%clk 0:00:08.9]}
44... Rh8 {[%clk 0:00:15.5]} 45. Rd5 {[%clk 0:00:06.6]} 45... Rh3+ {[%clk
0:00:15.7]} 46. Kb4 {[%clk 0:00:04]} 46... Rxh2 {[%clk 0:00:16.9]} 47. Rxf5
{[%clk 0:00:05.3]} 47... Rxa2 {[%clk 0:00:17.2]} 48. Rf6+ {[%clk 0:00:06.7]}
48... Kd7 {[%clk 0:00:16.1]} 49. Kc5 {[%clk 0:00:08.1]} 49... e3 {[%clk
0:00:13.6]} 50. Rd6+ {[%clk 0:00:09.2]} 50... Ke7 {[%clk 0:00:12.7]} 51. Rd3
{[%clk 0:00:10.2]} 51... e2 {[%clk 0:00:13.4]} 52. Re3+ {[%clk 0:00:11.5]} 52...
Kf6 {[%clk 0:00:14.4]} 53. Kd6 {[%clk 0:00:12.1]} 53... Kf5 {[%clk 0:00:13.9]}
54. c5 {[%clk 0:00:13.6]} 54... Kxf4 {[%clk 0:00:14.5]} 55. Re8 {[%clk
0:00:14.6]} 55... Kf3 {[%clk 0:00:10.7]} 56. c6 {[%clk 0:00:15.9]} 56... Rc2
{[%clk 0:00:11.6]} 57. c7 {[%clk 0:00:12.3]} 57... a5 {[%clk 0:00:12.8]} 58.
Rf8+ {[%clk 0:00:11.2]} 58... Kg2 {[%clk 0:00:12.6]} 59. Rg8+ {[%clk 0:00:12.5]}
59... Kf1 {[%clk 0:00:13.4]} 60. Rf8+ {[%clk 0:00:13.6]} 60... Kg2 {[%clk
0:00:11.3]} 61. Rg8+ {[%clk 0:00:14.5]} 61... Kf3 {[%clk 0:00:12.4]} 62. Rf8+
{[%clk 0:00:15.6]} 62... Kg3 {[%clk 0:00:13.3]} 63. Rg8+ {[%clk 0:00:16.6]}
63... Kf2 {[%clk 0:00:14.4]} 64. Rf8+ {[%clk 0:00:17.6]} 64... Ke3 {[%clk
0:00:12.9]} 65. Re8+ {[%clk 0:00:16.7]} 65... Kd2 {[%clk 0:00:13.4]} 66. c8=Q
{[%clk 0:00:05.4]} 66... Rxc8 {[%clk 0:00:13.7]} 67. Rxc8 {[%clk 0:00:07.3]}
67... e1=Q {[%clk 0:00:14.4]} 0-1

[Event "*** Titled Tuesday 3|2 Blitz"]
[Site "Chess.com"]
[Date "2016.01.05"]
[Round "9"]
[White "APL2001"]
[Black "the_drake"]
[Result "1-0"]
[WhiteElo "2038"]
[BlackElo "2015"]
[TimeControl "180+2"]
[EndTime "12:57:00 PST"]
[Termination "APL2001 won by checkmate"]

1. e4 {[%clk 0:02:58.2]} 1... e5 {[%clk 0:02:59.2]} 2. Nf3 {[%clk 0:02:58.7]}
2... Nc6 {[%clk 0:02:59.9]} 3. Bb5 {[%clk 0:02:59.1]} 3... a6 {[%clk 0:03:00]}
4. Ba4 {[%clk 0:03:00.2]} 4... Nf6 {[%clk 0:03:00.6]} 5. d4 {[%clk 0:03:00.5]}
5... b5 {[%clk 0:02:59.4]} 6. dxe5 {[%clk 0:02:52.1]} 6... Nxe4 {[%clk
0:02:59.6]} 7. Bb3 {[%clk 0:02:52.5]} 7... Nc5 {[%clk 0:02:52.4]} 8. Bd5 {[%clk
0:02:53.1]} 8... Ne6 {[%clk 0:02:45.4]} 9. Nc3 {[%clk 0:02:48.6]} 9... Bb7
{[%clk 0:02:39.1]} 10. O-O {[%clk 0:02:48.7]} 10... Be7 {[%clk 0:02:36.7]} 11.
Re1 {[%clk 0:02:42.9]} 11... Na5 {[%clk 0:02:35.9]} 12. Bxb7 {[%clk 0:02:42.6]}
12... Nxb7 {[%clk 0:02:37.8]} 13. Nd5 {[%clk 0:02:39.5]} 13... O-O {[%clk
0:02:32.7]} 14. Be3 {[%clk 0:02:35]} 14... Bc5 {[%clk 0:02:30.6]} 15. Qd2 {[%clk
0:02:31]} 15... d6 {[%clk 0:02:24.2]} 16. Rad1 {[%clk 0:02:25.7]} 16... c6
{[%clk 0:02:14.7]} 17. Bxc5 {[%clk 0:02:07.4]} 17... Nbxc5 {[%clk 0:02:15.3]}
18. Nb4 {[%clk 0:01:53.3]} 18... dxe5 {[%clk 0:01:51.1]} 19. Qxd8 {[%clk
0:01:47.8]} 19... Nxd8 {[%clk 0:01:33]} 20. Nxe5 {[%clk 0:01:48.7]} 20... Rc8
{[%clk 0:01:29.5]} 21. Nd7 {[%clk 0:01:24.4]} 21... a5 {[%clk 0:01:22.5]} 22.
Nxf8 {[%clk 0:00:59.7]} 22... Kxf8 {[%clk 0:01:20.3]} 23. Nd3 {[%clk 0:00:59.5]}
23... Na4 {[%clk 0:01:17.6]} 24. Ne5 {[%clk 0:00:52]} 24... Ne6 {[%clk
0:01:00.1]} 25. b3 {[%clk 0:00:53.2]} 25... Nc3 {[%clk 0:00:59.4]} 26. Rd7
{[%clk 0:00:54.1]} 26... Rc7 {[%clk 0:00:52.6]} 27. Rxc7 {[%clk 0:00:53.9]}
27... Nxc7 {[%clk 0:00:53.7]} 28. Nxc6 {[%clk 0:00:53.6]} 28... Nxa2 {[%clk
0:00:54.8]} 29. Nxa5 {[%clk 0:00:54]} 29... Nb4 {[%clk 0:00:56]} 30. c4 {[%clk
0:00:52.4]} 30... bxc4 {[%clk 0:00:49.2]} 31. bxc4 {[%clk 0:00:53.6]} 31... Ne6
{[%clk 0:00:50.5]} 32. Nb3 {[%clk 0:00:52.2]} 32... Ke7 {[%clk 0:00:49.5]} 33.
Nd4 {[%clk 0:00:51.8]} 33... Nd3 {[%clk 0:00:47.6]} 34. Re3 {[%clk 0:00:48.7]}
34... Nc5 {[%clk 0:00:47.4]} 35. Nxe6 {[%clk 0:00:49]} 35... Nxe6 {[%clk
0:00:48.1]} 36. Ra3 {[%clk 0:00:45.5]} 36... Kd6 {[%clk 0:00:44.8]} 37. Ra7
{[%clk 0:00:46.3]} 37... Kc5 {[%clk 0:00:43.9]} 38. Rxf7 {[%clk 0:00:46.8]}
38... Kxc4 {[%clk 0:00:45.3]} 39. Re7 {[%clk 0:00:48.2]} 39... Kd5 {[%clk
0:00:46.7]} 40. f3 {[%clk 0:00:46.9]} 40... Kd6 {[%clk 0:00:47.3]} 41. Ra7
{[%clk 0:00:47.9]} 41... Ke5 {[%clk 0:00:48.1]} 42. Kf2 {[%clk 0:00:48]} 42...
Kf6 {[%clk 0:00:49.4]} 43. g3 {[%clk 0:00:48.7]} 43... h6 {[%clk 0:00:48.7]} 44.
f4 {[%clk 0:00:48.7]} 44... Nd4 {[%clk 0:00:48.9]} 45. Ra6+ {[%clk 0:00:48.4]}
45... Kf5 {[%clk 0:00:46.6]} 46. Ke3 {[%clk 0:00:46.3]} 46... Nc2+ {[%clk
0:00:44.4]} 47. Kd2 {[%clk 0:00:45.6]} 47... Nd4 {[%clk 0:00:43.6]} 48. Ra7
{[%clk 0:00:43.6]} 48... g5 {[%clk 0:00:41.3]} 49. fxg5 {[%clk 0:00:44.2]} 49...
hxg5 {[%clk 0:00:42.7]} 50. Ke3 {[%clk 0:00:45.2]} 50... Nc2+ {[%clk 0:00:36]}
51. Kf2 {[%clk 0:00:46.1]} 51... Kg4 {[%clk 0:00:33.3]} 52. Ra5 {[%clk
0:00:35.7]} 52... Kh5 {[%clk 0:00:24.1]} 53. h4 {[%clk 0:00:35.7]} 53... Nb4
{[%clk 0:00:16.4]} 54. Rxg5+ {[%clk 0:00:35.8]} 54... Kh6 {[%clk 0:00:17.9]} 55.
Kf3 {[%clk 0:00:35.3]} 55... Nd3 {[%clk 0:00:18.5]} 56. Ra5 {[%clk 0:00:34.9]}
56... Nb4 {[%clk 0:00:17.2]} 57. g4 {[%clk 0:00:35]} 57... Nd3 {[%clk
0:00:18.1]} 58. Ra6+ {[%clk 0:00:29.5]} 58... Kg7 {[%clk 0:00:19.2]} 59. h5
{[%clk 0:00:29.8]} 59... Kh7 {[%clk 0:00:16.6]} 60. g5 {[%clk 0:00:29.1]} 60...
Ne5+ {[%clk 0:00:17.7]} 61. Kg3 {[%clk 0:00:27.7]} 61... Nc4 {[%clk 0:00:16.7]}
62. Ra7+ {[%clk 0:00:27.8]} 62... Kg8 {[%clk 0:00:18.2]} 63. g6 {[%clk
0:00:27.1]} 63... Nd6 {[%clk 0:00:19.6]} 64. Kg4 {[%clk 0:00:23.5]} 64... Kh8
{[%clk 0:00:17.8]} 65. h6 {[%clk 0:00:24.3]} 65... Nf7 {[%clk 0:00:08.7]} 66.
Ra8+ {[%clk 0:00:25]} 66... Nd8 {[%clk 0:00:08.4]} 67. Rxd8# {[%clk 0:00:26.2]}
1-0

[Event "*** Titled Tuesday 3|2 Blitz"]
[Site "Chess.com"]
[Date "2016.01.05"]
[Round "9"]
[White "AdrianaNikolova"]
[Black "levallem"]
[Result "0-1"]
[WhiteElo "2170"]
[BlackElo "2160"]
[TimeControl "180+2"]
[EndTime "12:57:05 PST"]
[Termination "levallem won by resignation"]

1. e4 {[%clk 0:03:01.9]} 1... c5 {[%clk 0:03:00.7]} 2. Nf3 {[%clk 0:03:02]} 2...
g6 {[%clk 0:03:01.6]} 3. c3 {[%clk 0:03:01.1]} 3... Bg7 {[%clk 0:03:00.3]} 4. d4
{[%clk 0:03:01.9]} 4... cxd4 {[%clk 0:03:02.2]} 5. cxd4 {[%clk 0:03:03.8]} 5...
d5 {[%clk 0:03:01.5]} 6. e5 {[%clk 0:03:03.3]} 6... Bg4 {[%clk 0:03:00.6]} 7.
Nc3 {[%clk 0:03:02.2]} 7... Nc6 {[%clk 0:03:00.8]} 8. Qb3 {[%clk 0:03:02.3]}
8... Bxf3 {[%clk 0:02:33]} 9. gxf3 {[%clk 0:03:00.7]} 9... Nxd4 {[%clk
0:02:32.6]} 10. Qa4+ {[%clk 0:02:53.7]} 10... Nc6 {[%clk 0:02:30.9]} 11. Bb5
{[%clk 0:02:55.2]} 11... Qd7 {[%clk 0:02:20.2]} 12. Bf4 {[%clk 0:02:53.7]} 12...
e6 {[%clk 0:02:17.1]} 13. O-O-O {[%clk 0:02:52.5]} 13... Nge7 {[%clk 0:02:17.8]}
14. Ne4 {[%clk 0:02:51.5]} 14... O-O {[%clk 0:02:05.8]} 15. Nf6+ {[%clk
0:02:34.9]} 15... Bxf6 {[%clk 0:02:03.6]} 16. exf6 {[%clk 0:02:36.8]} 16... Nf5
{[%clk 0:02:01.8]} 17. h4 {[%clk 0:02:34]} 17... Rfc8 {[%clk 0:01:51.3]} 18. Kb1
{[%clk 0:02:34.4]} 18... a6 {[%clk 0:01:51.6]} 19. Bd3 {[%clk 0:02:34.1]} 19...
b5 {[%clk 0:01:44]} 20. Qa3 {[%clk 0:02:26]} 20... h5 {[%clk 0:00:53]} 21. Bxf5
{[%clk 0:02:23.6]} 21... exf5 {[%clk 0:00:54.9]} 22. Bh6 {[%clk 0:02:03.1]}
22... Qe6 {[%clk 0:00:50]} 23. Bg7 {[%clk 0:02:01.9]} 23... Re8 {[%clk 0:00:48]}
24. f4 {[%clk 0:01:54.8]} 24... d4 {[%clk 0:00:39.6]} 25. Qg3 {[%clk 0:01:48.3]}
25... Nb4 {[%clk 0:00:23.1]} 26. Qb3 {[%clk 0:01:25.3]} 26... Qxb3 {[%clk
0:00:20]} 27. axb3 {[%clk 0:01:26]} 27... Rad8 {[%clk 0:00:21.7]} 28. Rd2 {[%clk
0:01:20.9]} 28... d3 {[%clk 0:00:22.5]} 29. Rhd1 {[%clk 0:01:19.6]} 29... a5
{[%clk 0:00:23.2]} 30. Bh6 {[%clk 0:01:20.3]} 30... Rd4 {[%clk 0:00:22.8]} 31.
Rc1 {[%clk 0:01:18.7]} 31... Rde4 {[%clk 0:00:22.7]} 32. Rcd1 {[%clk 0:01:08.8]}
32... Re2 {[%clk 0:00:22.5]} 33. Rxd3 {[%clk 0:01:08.5]} 33... Nxd3 {[%clk
0:00:21.8]} 34. Rxd3 {[%clk 0:01:10.4]} 34... Rxf2 {[%clk 0:00:23.2]} 35. Rd5
{[%clk 0:01:05]} 35... Rb8 {[%clk 0:00:19.6]} 36. Re5 {[%clk 0:01:02.7]} 36...
Rh2 {[%clk 0:00:20.5]} 37. Bg5 {[%clk 0:01:03.8]} 37... Kf8 {[%clk 0:00:20.8]}
38. Rc5 {[%clk 0:01:04.6]} 38... Ke8 {[%clk 0:00:19]} 39. Re5+ {[%clk
0:01:05.7]} 39... Kf8 {[%clk 0:00:18.5]} 40. Re7 {[%clk 0:01:07.6]} 40... Rf2
{[%clk 0:00:18.1]} 41. Bh6+ {[%clk 0:01:07.9]} 41... Kg8 {[%clk 0:00:19.4]} 42.
Bg5 {[%clk 0:01:09.8]} 42... a4 {[%clk 0:00:19.6]} 43. b4 {[%clk 0:01:09.5]}
43... Rd8 {[%clk 0:00:19.2]} 44. Ka2 {[%clk 0:01:09.4]} 44... a3 {[%clk
0:00:19.1]} 45. Kxa3 {[%clk 0:01:09.8]} 45... Ra8+ {[%clk 0:00:19]} 46. Kb3
{[%clk 0:01:11]} 46... Rf3+ {[%clk 0:00:20.4]} 47. Kc2 {[%clk 0:01:12.6]} 47...
Rc8+ {[%clk 0:00:21.9]} 48. Kd2 {[%clk 0:01:13.9]} 48... Rd8+ {[%clk 0:00:22.3]}
49. Ke2 {[%clk 0:01:15.1]} 49... Rb3 {[%clk 0:00:23.3]} 50. Rb7 {[%clk 0:01:12]}
50... Rxb2+ {[%clk 0:00:25.2]} 51. Ke3 {[%clk 0:01:13.3]} 51... Rxb4 {[%clk
0:00:26.8]} 52. Bh6 {[%clk 0:01:14]} 52... Re8+ {[%clk 0:00:27.9]} 53. Kd3
{[%clk 0:01:15]} 53... Rb3+ {[%clk 0:00:28.5]} 54. Kc2 {[%clk 0:01:16.1]} 54...
Rb4 {[%clk 0:00:29.7]} 55. Kc3 {[%clk 0:01:17.6]} 55... Rc4+ {[%clk 0:00:31.3]}
56. Kb3 {[%clk 0:01:16.1]} 56... Rc5 {[%clk 0:00:31.2]} 57. Kb4 {[%clk
0:01:16.6]} 57... Rd5 {[%clk 0:00:32.8]} 58. Rb6 {[%clk 0:01:16.9]} 58... Rc8
{[%clk 0:00:33.7]} 59. Kb3 {[%clk 0:01:17.8]} 59... Rdd8 {[%clk 0:00:27.7]} 60.
Rb7 {[%clk 0:01:14.4]} 60... Rb8 {[%clk 0:00:28.4]} 61. Re7 {[%clk 0:01:15.2]}
61... b4 {[%clk 0:00:28.2]} 62. Re3 {[%clk 0:01:16.7]} 62... Rd6 {[%clk
0:00:27.7]} 63. Rf3 {[%clk 0:01:17.3]} 63... Ra6 {[%clk 0:00:25.8]} 64. Kb2
{[%clk 0:01:17.3]} 64... Rba8 {[%clk 0:00:16.7]} 65. Rb3 {[%clk 0:01:11.4]}
65... Ra2+ {[%clk 0:00:16.5]} 66. Kc1 {[%clk 0:01:12.9]} 66... Rc8+ {[%clk
0:00:16.8]} 67. Kd1 {[%clk 0:01:13.2]} 67... Rb8 {[%clk 0:00:18.7]} 68. Kc1
{[%clk 0:01:14.1]} 68... Ra3 {[%clk 0:00:20]} 69. Rb2 {[%clk 0:01:14.2]} 69...
b3 {[%clk 0:00:20.9]} 70. Kd2 {[%clk 0:01:14.2]} 70... Ra2 {[%clk 0:00:21.6]}
71. Kc3 {[%clk 0:01:15.6]} 71... Rxb2 {[%clk 0:00:22]} 72. Kxb2 {[%clk 0:01:17]}
72... Rb4 {[%clk 0:00:21]} 73. Bg5 {[%clk 0:01:16.9]} 73... Rb6 {[%clk
0:00:21.8]} 74. Bh6 {[%clk 0:01:16.7]} 74... Kh7 {[%clk 0:00:21.9]} 75. Bf8
{[%clk 0:01:17.6]} 75... Rxf6 {[%clk 0:00:21.1]} 76. Kxb3 {[%clk 0:01:18.4]}
76... Re6 {[%clk 0:00:22.4]} 77. Kc3 {[%clk 0:01:17.6]} 77... Re4 {[%clk
0:00:23.2]} 78. Bd6 {[%clk 0:01:18.6]} 78... Re3+ {[%clk 0:00:23.8]} 79. Kd4
{[%clk 0:01:20]} 79... Rh3 {[%clk 0:00:24.7]} 80. Be7 {[%clk 0:01:21.1]} 80...
Kg7 {[%clk 0:00:25.7]} 81. Ke5 {[%clk 0:01:19.1]} 81... Re3+ {[%clk 0:00:26.7]}
82. Kd6 {[%clk 0:01:19.9]} 82... Re6+ {[%clk 0:00:27.7]} 83. Kd7 {[%clk
0:01:20.9]} 83... Re4 {[%clk 0:00:28.4]} 84. Bd6 {[%clk 0:01:22.4]} 84... f6
{[%clk 0:00:25.8]} 85. Bc7 {[%clk 0:01:23.6]} 85... Kf7 {[%clk 0:00:26.5]} 86.
Bb8 {[%clk 0:01:24.7]} 86... Rd4+ {[%clk 0:00:27.7]} 87. Kc6 {[%clk 0:01:26.3]}
87... Rd3 {[%clk 0:00:29.3]} 88. Ba7 {[%clk 0:01:24.4]} 88... Rh3 {[%clk
0:00:31.2]} 89. Bf2 {[%clk 0:01:25.6]} 89... Rf3 {[%clk 0:00:31.9]} 90. Bc5
{[%clk 0:01:26.9]} 90... Rxf4 {[%clk 0:00:32.8]} 91. Kd5 {[%clk 0:01:28.8]}
91... Rxh4 {[%clk 0:00:33.8]} 92. Bf2 {[%clk 0:01:30.1]} 92... Re4 {[%clk
0:00:35.5]} 93. Bc5 {[%clk 0:01:31.8]} 93... h4 {[%clk 0:00:36.9]} 94. Bd6
{[%clk 0:01:33.2]} 94... g5 {[%clk 0:00:38.6]} 95. Kc5 {[%clk 0:01:34.6]} 95...
h3 {[%clk 0:00:40.3]} 96. Kd5 {[%clk 0:01:35.8]} 96... g4 {[%clk 0:00:42.2]} 97.
Bg3 {[%clk 0:01:35.9]} 97... Kg6 {[%clk 0:00:44.1]} 98. Bd6 {[%clk 0:01:36.7]}
98... Re2 {[%clk 0:00:46]} 99. Bc7 {[%clk 0:01:38.5]} 99... h2 {[%clk
0:00:47.6]} 100. Bxh2 {[%clk 0:01:37.9]} 100... Rxh2 {[%clk 0:00:48.6]} 101. Kd4
{[%clk 0:01:39.8]} 101... Re2 {[%clk 0:00:50.1]} 102. Kd3 {[%clk 0:01:40.9]}
102... Re4 {[%clk 0:00:52]} 103. Kd2 {[%clk 0:01:42.1]} 103... g3 {[%clk
0:00:53.9]} 104. Kd3 {[%clk 0:01:44]} 104... g2 {[%clk 0:00:55.8]} 105. Kd2
{[%clk 0:01:45.9]} 105... g1=Q {[%clk 0:00:57.5]} 0-1